bitfinex-derivatives/quotes_SOLF0:USTF0_20250808
["timestamp","ask_amount","ask_price","bid_price","bid_amount"]
[1754680905937,3.18,178.35,178.29,6.78586461]
[1754680906435,3.18,178.31,178.3,2.8]
[1754680906838,5.607,178.32,178.29,3.98586461]
[1754680906839,3.18,178.3,178.29,3.98586461]
[1754680907337,5.607,178.32,178.29,3.98586461]
[1754680907540,3.18,178.31,178.3,2.8]
[1754680908138,5.6073,178.31,178.29,6.78586461]
[1754680908338,3.18,178.3,178.29,6.78586461]
[1754680908537,3.18,178.32,178.29,6.78586461]
[1754680908842,3.18,178.31,178.29,6.78586461]
[1754680909341,3.98586461,178.37,178.29,6.78586461]
[1754680909544,3.18,178.36,178.29,6.78586461]
[1754680909840,3.98586461,178.37,178.29,12.39376461]
[1754680910340,3.18,178.31,178.29,12.39376461]
[1754680910741,3.18,178.31,178.29,6.78586461]
[1754680911236,8.7873,178.31,178.29,6.78586461]
[1754680912139,5.6073,178.31,178.29,6.78586461]
[1754680912341,3.18,178.31,178.3,2.8]
[1754680912736,3.18,178.3,178.29,3.98586461]
[1754680912936,3.98586461,178.39,178.3,2.8]
[1754680913136,3.18,178.38,178.32,3.98586461]
[1754680913435,3.18,178.41,178.35,6.78586461]
[1754680913842,3.18,178.38,178.37,6.78586461]
[1754680914137,163.62997825,178.42,178.37,3.98586461]
[1754680914340,3.18,178.46,178.39,6.78586461]
[1754680914543,3.18,178.46,178.29,380.84586461]
[1754680914544,3.18,178.46,178.41,6.78586461]
[1754680914845,3.18,178.46,178.41,12.38976461]
[1754680915348,3.18,178.46,178.41,3.98586461]
[1754680915544,3.18,178.44,178.41,3.98586461]
[1754680915747,3.18,178.43,178.41,6.78586461]
[1754680916140,3.98586461,178.49,178.41,6.78586461]
[1754680916341,3.18,178.42,178.41,6.78586461]
[1754680917346,3.98586461,178.49,178.41,6.78586461]
[1754680917544,3.18,178.43,178.41,6.78586461]
[1754680917843,3.18,178.43,178.42,2.8]
[1754680918346,3.98586461,178.49,178.42,2.8]
[1754680918650,3.98586461,178.49,178.41,3.98586461]
[1754680918846,3.18,178.43,178.41,6.78586461]
[1754680919046,3.18,178.43,178.42,2.8]
[1754680920050,5.6027,178.46,178.42,2.8]
[1754680920246,3.18,178.5,178.42,2.8]
[1754680920540,3.18,178.48,178.41,3.98586461]
[1754680920745,3.18,178.48,178.41,6.78586461]
[1754680921154,5.6034,178.44,178.41,6.78586461]
[1754680921449,3.18,178.48,178.41,6.78586461]
[1754680921751,5.6033,178.44,178.41,6.78586461]
[1754680921945,3.98586461,178.49,178.42,2.8]
[1754680921946,3.18,178.43,178.42,2.8]
[1754680922648,3.18,178.48,178.41,3.98586461]
[1754680922849,3.18,178.48,178.41,6.78586461]
[1754680923355,3.18,178.48,178.41,3.98586461]
[1754680923947,5.6034,178.44,178.41,3.98586461]
[1754680924256,3.18,178.42,178.41,6.77586461]
[1754680926348,8.7838,178.42,178.41,2.79]
[1754680926650,8.7838,178.42,178.4,3.98586461]
[1754680926854,3.11,178.41,178.4,6.77586461]
[1754680927053,3.11,178.41,178.37,6.77586461]
[1754680927355,5.6046,178.4,178.37,6.77586461]
[1754680927550,3.11,178.39,178.37,6.77586461]
[1754680927751,3.11,178.38,178.37,6.77586461]
[1754680927950,8.7146,178.4,178.37,6.77586461]
[1754680928148,3.98586461,178.45,178.37,6.77586461]
[1754680928149,3.11,178.38,178.37,6.77586461]
[1754680929954,3.11,178.38,178.37,3.98586461]
[1754680930657,3.11,178.38,178.37,6.77586461]
[1754680932252,3.11,178.38,178.37,3.98586461]
[1754680932856,3.11,178.38,178.35,3.98586461]
[1754680933154,8.7154,178.38,178.35,6.77586461]
[1754680933363,3.11,178.38,178.35,6.77586461]
[1754680933960,3.11,178.36,178.35,6.77586461]
[1754680934460,3.11,178.36,178.35,12.38186461]
[1754680935259,3.11,178.36,178.35,6.77586461]
[1754680935460,3.11,178.35,178.33,141.84586461]
[1754680935755,3.11,178.4,178.33,6.77586461]
[1754680935956,5.6059,178.36,178.33,6.77586461]
[1754680936461,3.11,178.34,178.33,6.77586461]
[1754680936764,3.11,178.34,178.33,3.98586461]
[1754680937361,3.11,178.34,178.31,150.20296461]
[1754680937657,3.11,178.33,178.31,141.80586461]
[1754680937856,5.6064,178.34,178.31,141.80586461]
[1754680938055,3.11,178.32,178.31,144.59586461]
[1754680938462,3.11,178.32,178.31,150.20316461]
[1754680938858,3.98586461,178.39,178.31,141.80586461]
[1754680939060,3.11,178.33,178.32,2.79]
[1754680939456,3.11,178.35,178.31,141.80586461]
[1754680939762,3.11,178.41,178.34,6.77586461]
[1754680939961,5.6056,178.37,178.34,6.77586461]
[1754680940160,3.11,178.35,178.34,6.77586461]
[1754680941062,3.11,178.35,178.34,12.38216461]
[1754680941464,3.11,178.37,178.34,12.38216461]
[1754680941665,3.11,178.35,178.34,6.77586461]
[1754680942462,3.11,178.41,178.34,6.77586461]
[1754680942663,3.11,178.41,178.37,2.79]
[1754680943659,3.98586461,178.43,178.36,141.82586461]
[1754680943964,3.11,178.4,178.34,141.86586461]
[1754680944153,3.11,178.37,178.35,2.79]
[1754680944353,3.11,178.36,178.35,2.79]
[1754680945254,3.11,178.41,178.35,2.79]
[1754680945461,3.11,178.41,178.36,3.98586461]
[1754680945764,3.11,178.41,178.36,6.77586461]
[1754680945963,3.98586461,178.37,178.29,376.86]
[1754680946158,9.31887179,178.36,178.28,3.98586461]
[1754680946359,6.20887179,178.36,178.28,138.2]
[1754680946557,3.11,178.3,178.29,2.79]
[1754680946759,3.11,178.35,178.29,2.79]
[1754680946965,3.11,178.35,178.3,3.98586461]
[1754680947165,3.11,178.35,178.28,144.97586461]
[1754680947474,5.607,178.32,178.28,142.18586461]
[1754680947669,6.20887179,178.36,178.28,142.18586461]
[1754680947670,3.11,178.35,178.3,3.98586461]
[1754680947967,3.11,178.36,178.35,2.79]
[1754680948561,8.7157,178.36,178.35,2.79]
[1754680948863,3.11,178.36,178.34,6.77586461]
[1754680949168,3.11,178.36,178.35,2.79]
[1754680949361,6.20887179,178.39,178.34,3.98586461]
[1754680949561,6.20887179,178.39,178.36,2.79]
[1754680949762,3.11,178.39,178.37,2.79]
[1754680950067,3.11,178.39,178.36,6.77586461]
[1754680950366,6.20887179,178.4,178.36,6.77586461]
[1754680950568,3.11,178.38,178.36,6.77586461]
[1754680950956,3.11,178.39,178.36,3.98586461]
[1754680951161,3.11,178.39,178.37,2.79]
[1754680951367,3.11,178.38,178.32,141.07]
[1754680951569,3.11,178.37,178.33,9.59236461]
[1754680951766,3.11,178.37,178.33,6.77586461]
[1754680952061,3.11,178.36,178.34,8.3963]
[1754680952257,6.20887179,178.39,178.34,8.3963]
[1754680952464,3.11,178.35,178.34,8.3963]
[1754680952861,3.11,178.35,178.34,2.79]
[1754680954365,3.11,178.35,178.34,8.3963]
[1754680954962,3.11,178.37,178.35,5.6059]
[1754680955259,6.20887179,178.38,178.35,6.77586461]
[1754680955470,3.11,178.36,178.35,6.77586461]
[1754680956267,6.20887179,178.36,178.31,3.98586461]
[1754680956471,6.20887179,178.36,178.2,380.64586461]
[1754680956472,9.43887179,178.33,178.29,145.06586461]
[1754680956764,3.23,178.31,178.28,143.908]
[1754680957359,3.23,178.31,178.29,9.59376461]
[1754680957563,3.23,178.3,178.29,12.37376461]
[1754680957769,3.23,178.3,178.26,3.98586461]
[1754680957964,6.20887179,178.31,178.28,3.98586461]
[1754680958269,3.23,178.31,178.29,2.78]
[1754680958470,9.35667164,178.36,178.29,2.78]
[1754680958471,3.23,178.3,178.29,2.78]
[1754680958862,3.23,178.32,178.29,8.3878]
[1754680959066,3.23,178.31,178.29,2.78]
[1754680960171,9.43887179,178.33,178.31,2.78]
[1754680960362,3.23,178.33,178.32,6.76586461]
[1754680960565,6.20887179,178.34,178.33,2.78]
[1754680960566,3.23,178.34,178.33,2.78]
[1754680960865,3.23,178.33,178.32,12.37266461]
[1754680963771,6.20887179,178.35,178.32,12.37266461]
[1754680964074,9.43887179,178.35,178.34,12.37216461]
[1754680964267,9.43887179,178.35,178.34,9.59216461]
[1754680965573,9.43887179,178.35,178.34,3.98586461]
[1754680965768,122.10956779,178.51,178.34,6.76586461]
[1754680965769,6.20887179,178.36,178.34,6.76586461]
[1754680965973,3.23,178.36,178.35,3.98586461]
[1754680966174,9.43887179,178.36,178.35,3.98586461]
[1754680967572,6.20887179,178.36,178.34,3.98586461]
[1754680967772,9.43887179,178.35,178.34,3.98586461]
[1754680967971,9.43887179,178.35,178.32,142.30586461]
[1754680968172,3.23,178.34,178.32,142.30586461]
[1754680969270,6.20887179,178.33,178.32,142.30586461]
[1754680969575,9.43887179,178.33,178.32,142.30586461]
[1754680970571,6.20887179,178.33,178.32,142.30586461]
[1754680970871,9.43887179,178.33,178.32,142.30586461]
[1754680972365,15.04547179,178.33,178.32,142.30586461]
[1754680972566,9.43887179,178.33,178.29,3.98586461]
[1754680972772,15.04677179,178.3,178.28,3.98586461]
[1754680972971,9.43887179,178.29,178.26,145.00586461]
[1754680973172,3.23,178.28,178.26,142.22586461]
[1754680973373,6.20887179,178.28,178.26,142.22586461]
[1754680973568,3.23,178.27,178.26,142.22586461]
[1754680973771,3.23,178.27,178.26,147.83466461]
[1754680973975,3.23,178.27,178.26,138.24]
[1754680974271,9.43887179,178.27,178.26,138.24]
[1754680974470,3.23,178.27,178.26,142.22586461]
[1754680975074,6.20887179,178.28,178.26,142.22586461]
[1754680975374,9.43887179,178.3,178.27,2.78]
[1754680975570,9.43887179,178.3,178.29,2.78]
[1754680975571,3.23,178.3,178.29,2.78]
[1754680977480,3.23,178.3,178.29,8.3879]
[1754680977881,3.23,178.3,178.29,2.78]
[1754680978281,3.23,178.3,178.28,3.98586461]
[1754680978282,3.23,178.29,178.28,9.59396461]
[1754680978977,3.23,178.29,178.28,3.98586461]
[1754680979183,9.43887179,178.29,178.28,138.22]
[1754680982184,15.04677179,178.29,178.25,2.78]
[1754680982383,3.23,178.28,178.25,2.78]
[1754680982584,3.23,178.27,178.25,2.78]
[1754680982881,11.81677179,178.29,178.25,2.78]
[1754680983084,3.23,178.28,178.26,5.6086]
[1754680983283,6.20887179,178.29,178.26,5.6086]
[1754680983482,3.23,178.27,178.26,5.6086]
[1754680983683,3.23,178.28,178.24,3.98586461]
[1754680983988,3.23,178.27,178.24,3.98586461]
[1754680984178,3.23,178.27,178.23,138.14]
[1754680984179,6.20887179,178.29,178.26,3.98586461]
[1754680984375,9.43887179,178.29,178.27,2.78]
[1754680984586,3.23,178.29,178.27,2.78]
[1754680984783,3.23,178.28,178.27,8.3883]
[1754680985183,3.23,178.28,178.27,2.78]
[1754680985387,5.6076,178.3,178.26,9.59456461]
[1754680985682,3.23,178.27,178.26,12.37456461]
[1754680986082,3.26,178.32,178.28,2.8]
[1754680986286,9.46887179,178.33,178.31,6.78586461]
[1754680986581,3.26,178.32,178.31,12.39286461]
[1754680987181,3.26,178.32,178.31,3.98586461]
[1754680987386,3.26,178.33,178.29,6.78586461]
[1754680988090,3.26,178.33,178.3,5.6074]
[1754680988291,3.26,178.33,178.29,6.78586461]
[1754680988783,6.20887179,178.34,178.29,3.98586461]
[1754680988985,9.46887179,178.34,178.3,2.8]
[1754680989182,9.46887179,178.34,178.29,3.98586461]
[1754680989183,6.20887179,178.34,178.33,3.98586461]
[1754680989387,3.26,178.34,178.33,12.39246461]
[1754680989981,9.46887179,178.36,178.35,5.606]
[1754680990188,6.20887179,178.37,178.35,3.98586461]
[1754680990384,6.20887179,178.37,178.36,2.8]
[1754680990581,6.20887179,178.37,178.36,8.4057]
[1754680990890,3.26,178.36,178.35,3.98586461]
[1754680991092,3.26,178.36,178.35,9.59176461]
[1754680992193,3.26,178.36,178.35,12.39176461]
[1754680992394,6.20887179,178.38,178.35,3.98586461]
[1754680992587,6.20887179,178.37,178.35,3.98586461]
[1754680992793,3.26,178.36,178.35,3.98586461]
[1754680993694,9.46887179,178.36,178.35,3.98586461]
[1754680995189,15.07457179,178.36,178.35,3.98586461]
[1754680995591,8.866,178.35,178.33,142.18586461]
[1754680995797,3.26,178.34,178.33,142.18586461]
[1754680995990,3.26,178.34,178.33,144.98586461]
[1754680996290,3.26,178.34,178.33,142.18586461]
[1754680998098,15.14204644,178.34,178.33,138.2]
[1754680998397,9.53574644,178.34,178.33,138.2]
[1754681000494,3.26,178.34,178.29,3.98586461]
[1754681000698,6.27856543,178.32,178.3,5.6076]
[1754681000893,3.26,178.3,178.29,3.98586461]
[1754681001094,3.26,178.3,178.28,138.06]
[1754681001296,3.26,178.3,178.29,9.59376461]
[1754681001490,3.26,178.31,178.3,2.79]
[1754681001806,3.26,178.37,178.31,2.79]
[1754681001998,32.24162746,178.5,178.36,6.77586461]
[1754681001999,9.35667164,178.4,178.36,6.77586461]
[1754681002196,3.26,178.38,178.37,2.79]
[1754681002597,9.35667164,178.4,178.36,5.6057]
[1754681002798,3.26,178.37,178.36,5.6057]
[1754681003109,3.26,178.37,178.35,141.05]
[1754681003110,9.35667164,178.4,178.35,143.8659]
[1754681003405,3.26,178.38,178.37,3.98586461]
[1754681004896,3.26,178.38,178.35,143.8658]
[1754681004897,3.26,178.36,178.35,138.26]
[1754681005500,3.26,178.39,178.36,8.3956]
[1754681005701,3.26,178.38,178.37,3.98586461]
[1754681007997,3.26,178.39,178.35,142.24586461]
[1754681008205,12.61667164,178.39,178.35,138.26]
[1754681008400,3.26,178.38,178.35,138.26]
[1754681008710,3.26,178.37,178.33,3.98586461]
[1754681008911,8.8655,178.37,178.33,12.38216461]
[1754681009102,3.26,178.36,178.33,12.38216461]
[1754681009412,3.26,178.35,178.33,12.38216461]
[1754681009704,3.26,178.38,178.34,2.79]
[1754681009902,3.26,178.37,178.36,6.77586461]
[1754681010511,3.26,178.37,178.35,3.98586461]
[1754681010909,3.26,178.36,178.35,3.98586461]
[1754681011403,3.26,178.36,178.33,3.98586461]
[1754681011800,3.26,178.36,178.31,142.22586461]
[1754681012110,8.866,178.35,178.34,5.38]
[1754681017216,5.606,178.35,178.34,5.38]
[1754681017404,8.816,178.35,178.34,5.38]
[1754681017907,8.8158,178.36,178.34,8.17]
[1754681018417,8.816,178.35,178.34,8.17]
[1754681018714,8.816,178.35,178.34,5.38]
[1754681020207,3.21,178.35,178.34,13.7763]
[1754681021014,3.21,178.35,178.34,8.17]
[1754681021214,8.816,178.35,178.34,8.17]
[1754681021417,3.21,178.35,178.34,8.17]
[1754681022620,3.21,178.37,178.35,2.79]
[1754681022814,3.21,178.38,178.34,5.38]
[1754681023019,3.21,178.38,178.34,8.17]
[1754681023210,5.6055,178.37,178.34,13.7761]
[1754681023417,3.21,178.36,178.34,13.7761]
[1754681023619,5.6055,178.37,178.34,13.7761]
[1754681023919,8.8157,178.36,178.34,13.7761]
[1754681024119,3.21,178.35,178.34,8.17]
[1754681024520,3.21,178.35,178.34,13.7763]
[1754681025018,3.21,178.35,178.34,5.38]
[1754681025428,3.21,178.35,178.34,8.17]
[1754681025624,3.21,178.35,178.34,5.38]
[1754681025824,8.816,178.35,178.34,5.38]
[1754681030621,18.17267164,178.35,178.34,5.38]
[1754681031924,5.6067,178.33,178.31,150.5472]
[1754681032228,9.50372325,178.32,178.31,153.3372]
[1754681032526,3.21,178.32,178.31,153.3372]
[1754681032824,8.817,178.32,178.31,144.94]
[1754681035123,8.817,178.32,178.31,6.7]
[1754681035325,18.17367164,178.32,178.31,6.7]
[1754681035518,8.817,178.32,178.31,6.7]
[1754681035721,18.17367164,178.32,178.31,6.7]
[1754681036226,8.817,178.32,178.31,0.0001]
[1754681036425,8.8173,178.31,178.3,0.0001]
[1754681036622,12.80316461,178.31,178.3,0.0001]
[1754681036825,3.21,178.3,178.22,138.46]
[1754681037025,3.21,178.23,178.19,2.79]
[1754681037221,6.29095623,178.21,178.19,141.33]
[1754681037429,4.04318034,178.2,178.19,146.941]
[1754681037626,4.04318034,178.2,178.19,143.43485222]
[1754681037627,12.88109933,178.2,178.19,143.43485222]
[1754681038024,6.5901431,178.2,178.19,143.43485222]
[1754681038224,9.8001431,178.2,178.19,143.43485222]
[1754681038626,16.07996737,178.2,178.19,143.43485222]
[1754681039128,16.07996737,178.2,178.19,147.42071683]
[1754681039430,16.07489827,178.2,178.19,147.42071683]
[1754681040124,12.86489827,178.2,178.19,141.80971683]
[1754681040325,12.86489827,178.2,178.19,137.82385222]
[1754681040326,16.07489827,178.2,178.19,137.82385222]
[1754681040522,3.21,178.19,178.16,138.54]
[1754681040729,9.48490132,178.17,178.16,138.54]
[1754681041033,16.07504442,178.17,178.16,144.152]
[1754681041624,9.8001431,178.17,178.16,144.152]
[1754681042237,6.27490132,178.2,178.16,138.54]
[1754681042528,3.21,178.2,178.16,138.54]
[1754681042728,3.21,178.2,178.19,3.98586461]
[1754681042928,9.47290177,178.2,178.19,142.62586461]
[1754681043126,9.47290177,178.2,178.19,148.23686461]
[1754681044433,9.47290177,178.2,178.19,142.62586461]
[1754681045135,3.21,178.2,178.19,142.62586461]
[1754681045429,6.26290177,178.21,178.19,138.64]
[1754681045629,9.47290177,178.21,178.19,142.62586461]
[1754681045831,9.47290177,178.21,178.19,148.23666461]
[1754681046030,3.21,178.2,178.19,142.62586461]
[1754681047035,3.21,178.2,178.19,138.64]
[1754681047739,3.21,178.2,178.19,144.251]
[1754681048730,3.21,178.2,178.19,138.64]
[1754681048931,9.22290177,178.22,178.19,138.64]
[1754681049235,2.96,178.21,178.2,3.98586461]
[1754681054227,6.88381235,178.21,178.2,3.98586461]
[1754681055742,3.92381235,178.21,178.2,9.59656461]
[1754681056535,6.88381235,178.21,178.2,9.59656461]
[1754681057230,3.92381235,178.21,178.2,9.59656461]
[1754681057436,2.96,178.24,178.23,5.6098]
[1754681057637,6.26290177,178.26,178.23,147.95566461]
[1754681057835,6.26290177,178.26,178.23,142.34586461]
[1754681058032,2.96,178.25,178.23,142.34586461]
[1754681058336,2.96,178.24,178.23,147.95566461]
[1754681060136,2.96,178.24,178.23,138.36]
[1754681060338,2.96,178.24,178.23,142.34586461]
[1754681061238,8.5695,178.24,178.23,138.36]
[1754681062046,8.5695,178.24,178.22,3.98586461]
[1754681062248,8.5698,178.23,178.22,3.98586461]
[1754681063151,2.96,178.23,178.22,3.98586461]
[1754681064643,2.96,178.23,178.22,9.59596461]
[1754681067546,2.96,178.25,178.24,5.6095]
[1754681067742,9.22290177,178.27,178.24,142.18586461]
[1754681067946,2.96,178.27,178.26,3.98586461]
[1754681068149,9.22290177,178.27,178.26,3.98586461]
[1754681068449,2.96,178.27,178.26,9.59466461]
[1754681068750,2.96,178.27,178.26,3.98586461]
[1754681069143,2.96,178.27,178.26,9.59456461]
[1754681069343,6.80979347,178.27,178.26,9.59456461]
[1754681069745,6.80979347,178.27,178.26,3.98586461]
[1754681069952,13.07269524,178.27,178.26,3.98586461]
[1754681070150,18.68119524,178.27,178.26,3.98586461]
[1754681070354,2.96,178.26,178.24,142.22586461]
[1754681070548,13.06591953,178.25,178.24,142.22586461]
[1754681070850,13.06591953,178.25,178.24,3.98586461]
[1754681071351,2.96,178.24,178.22,3.98586461]
[1754681071551,6.80979347,178.23,178.22,3.98586461]
[1754681071852,6.8132854,178.23,178.22,3.98586461]
[1754681072651,2.96,178.22,178.21,138.28]
[1754681072841,6.8132854,178.22,178.18,3.98586461]
[1754681073044,2.96,178.2,178.18,142.28586461]
[1754681073244,6.8132854,178.19,178.18,142.28586461]
[1754681074149,6.8132854,178.19,178.18,147.89726461]
[1754681074350,6.8132854,178.19,178.18,142.28586461]
[1754681074748,3.8532854,178.19,178.18,142.28586461]
[1754681075253,3.8532854,178.19,178.18,147.89726461]
[1754681076250,6.9032854,178.19,178.18,147.89726461]
[1754681076453,13.15941146,178.19,178.18,147.89726461]
[1754681077450,10.10941146,178.19,178.18,147.89726461]
[1754681077651,3.8532854,178.19,178.18,147.89726461]
[1754681077853,6.25612606,178.21,178.2,5.6107]
[1754681078047,9.43641085,178.24,178.2,3.98586461]
[1754681078249,9.43641085,178.24,178.21,138.28]
[1754681078442,9.43641085,178.24,178.23,9.59566461]
[1754681078653,91.27943418,178.29,178.23,9.59566461]
[1754681078654,12.48641085,178.25,178.23,3.98586461]
[1754681078853,3.05,178.25,178.24,138.3]
[1754681079155,12.48641085,178.25,178.24,143.9095]
[1754681080453,3.05,178.25,178.24,143.9095]
[1754681080653,3.05,178.25,178.24,138.3]
[1754681083248,3.05,178.25,178.24,143.9095]
[1754681084148,3.05,178.27,178.25,5.6091]
[1754681084349,3.05,178.27,178.25,9.59496461]
[1754681084749,8.6586,178.27,178.25,3.98586461]
[1754681084952,3.05,178.26,178.25,3.98586461]
[1754681085750,5.6083,178.28,178.25,9.59496461]
[1754681085955,98.25331532,178.29,178.25,3.98586461]
[1754681086154,3.05,178.28,178.25,3.98586461]
[1754681086354,3.05,178.28,178.26,5.6088]
[1754681086558,3.05,178.28,178.25,3.98586461]
[1754681088260,3.05,178.27,178.25,9.59486461]
[1754681089659,3.05,178.25,178.18,138.06]
[1754681089858,12.48428253,178.2,178.18,138.06]
[1754681090058,12.48428253,178.2,178.19,5.6108]
[1754681090254,3.05,178.19,178.17,3.98586461]
[1754681090459,12.48428253,178.19,178.18,138.24]
[1754681091054,15.04263348,178.19,178.18,134.73345214]
[1754681091760,11.21935095,178.19,178.18,134.73345214]
[1754681094567,11.21935095,178.19,178.12,3.98586461]
[1754681094568,3.05,178.18,178.12,3.98586461]
[1754681094866,3.05,178.15,178.13,138.18]
[1754681095163,15.04412487,178.14,178.13,138.18]
[1754681095560,2.55835095,178.14,178.09,5.6139]
[1754681095761,3.05,178.12,178.1,138.26]
[1754681095966,5.60835095,178.11,178.1,138.26]
[1754681096269,5.60835095,178.11,178.1,143.8739]
[1754681096964,11.22195095,178.11,178.1,138.26]
[1754681097166,2.55835095,178.11,178.01,3.24]
[1754681097467,2.55835095,178.11,177.93,381.66504555]
[1754681097468,5.615,178.07,178.03,5.616]
[1754681097669,6.55431187,178.06,178.03,5.616]
[1754681097868,3.05,178.04,178.03,5.616]
[1754681098062,6.55431187,178.04,178.03,5.616]
[1754681098263,6.55431187,178.04,178.03,8.856]
[1754681098461,3.05,178.03,178.0,3.24]
[1754681098662,6.55431187,178.04,178.0,138.5]
[1754681098663,3.05,178.01,178.0,138.5]
[1754681098969,9.60431187,178.01,178.0,141.74]
[1754681099170,9.60431187,178.01,178.0,138.5]
[1754681100166,3.05,178.0,177.96,3.24]
[1754681100468,3.05,177.98,177.95,138.56]
[1754681100677,3.05,177.96,177.95,138.56]
[1754681100867,9.60431187,177.96,177.95,138.56]
[1754681101265,3.05,177.95,177.93,3.24]
[1754681101464,3.05,177.93,177.91,145.78586461]
[1754681101670,6.55431187,177.92,177.91,145.78586461]
[1754681102374,9.60431187,177.92,177.91,142.54586461]
[1754681102567,9.60431187,177.92,177.91,138.56]
[1754681102766,6.55431187,177.92,177.91,141.8]
[1754681103971,6.55431187,177.92,177.91,138.56]
[1754681103972,9.60431187,177.92,177.91,138.56]
[1754681104173,3.05,177.91,177.88,138.68]
[1754681104365,3.05,177.91,177.81,377.1]
[1754681104366,6.55431187,177.9,177.81,377.1]
[1754681104571,3.05,177.87,177.82,138.68]
[1754681104772,3.05,177.87,177.82,139.67849009]
[1754681104773,3.05,177.85,177.82,139.67849009]
[1754681104973,5.60835095,177.84,177.82,142.91849009]
[1754681105174,2.55835095,177.83,177.82,142.91849009]
[1754681105373,2.55835095,177.83,177.82,148.54119009]
[1754681105871,5.60835095,177.83,177.82,139.67849009]
[1754681106575,5.60835095,177.83,177.82,142.71849009]
[1754681107673,2.55835095,177.83,177.82,142.71849009]
[1754681107973,0.0419578,177.86,177.83,3.04]
[1754681108182,0.0419578,177.86,177.85,3.04]
[1754681108378,3.2619578,177.86,177.85,138.88]
[1754681108571,0.0419578,177.86,177.85,148.40472136]
[1754681109580,0.0419578,177.86,177.85,154.02652136]
[1754681109877,3.2619578,177.86,177.85,138.88]
[1754681110073,0.0419578,177.86,177.85,141.92]
[1754681110479,3.2619578,177.86,177.85,138.88]
[1754681111380,0.0419578,177.86,177.85,147.5418]
[1754681112978,3.2619578,177.86,177.85,141.92]
[1754681113179,3.2619578,177.86,177.85,138.88]
[1754681113774,3.2619578,177.86,177.85,147.5418]
[1754681113980,0.0419578,177.86,177.85,147.5418]
[1754681115776,3.22,177.91,177.85,141.92]
[1754681116074,3.22,177.94,177.89,9.52472136]
[1754681116383,3.22,177.92,177.91,6.48472136]
[1754681116581,7.30754811,177.92,177.91,145.42472136]
[1754681116781,7.30754811,177.92,177.91,148.46472136]
[1754681116983,3.22,177.95,177.92,3.04]
[1754681117183,4.08590627,177.94,177.93,6.48472136]
[1754681117482,7.30590627,177.94,177.93,9.52472136]
[1754681117680,7.30590627,177.94,177.93,6.48472136]
[1754681118786,7.30590627,177.94,177.93,12.10392136]
[1754681119181,7.30590627,177.94,177.93,15.14392136]
[1754681119887,3.22,177.97,177.93,9.52472136]
[1754681120091,3.22,177.97,177.96,15.14302136]
[1754681120388,3.22,178.05,177.96,148.54472136]
[1754681120579,3.22,178.05,177.96,145.50472136]
[1754681120580,0.03580855,177.98,177.96,145.50472136]
[1754681120780,0.03580855,177.98,177.97,3.04]
[1754681120980,3.22,177.99,177.97,3.04]
[1754681121179,3.22,177.99,177.98,6.48472136]
[1754681121787,5.617,178.01,177.97,139.02]
[1754681121986,3.22,178.0,177.96,139.02]
[1754681122182,3.22,178.0,177.96,145.50472136]
[1754681122383,3.22,177.99,177.96,145.50472136]
[1754681122582,3.22,177.99,177.91,6.48472136]
[1754681122782,3.22,177.98,177.91,3.97894427]
[1754681122991,5.6186,177.95,177.91,3.97894427]
[1754681123187,3.22,177.93,177.91,3.97894427]
[1754681123379,3.22,177.92,177.91,7.01894427]
[1754681123683,3.22,177.99,177.91,3.97894427]
[1754681123889,3.22,177.99,177.95,3.97894427]
[1754681124088,5.6179,177.98,177.95,3.97894427]
[1754681124279,3.22,177.97,177.95,3.97894427]